[Event "*** Titled Tuesday Blitz"]
[Site "Chess.com"]
[Date "2020.04.07"]
[Round "2"]
[White "checkmatequen"]
[Black "Keaton87"]
[Result "1-0"]
[WhiteElo "2250"]
[BlackElo "2634"]
[TimeControl "180+1"]
[EndTime "13:19:19 PDT"]
[Termination "checkmatequen won on time"]

1. e4 {[%clk 0:03:00.9]} 1... c5 {[%clk 0:02:58.7]} 2. Nf3 {[%clk 0:02:59.5]}
2... d6 {[%clk 0:02:58.2]} 3. d4 {[%clk 0:02:59]} 3... Nf6 {[%clk 0:02:58.2]} 4.
Nc3 {[%clk 0:02:57.7]} 4... cxd4 {[%clk 0:02:58.4]} 5. Nxd4 {[%clk 0:02:57.5]}
5... g6 {[%clk 0:02:58.9]} 6. Be3 {[%clk 0:02:55.5]} 6... Bg7 {[%clk 0:02:58.6]}
7. Bc4 {[%clk 0:02:55]} 7... Ng4 {[%clk 0:02:52]} 8. Bb5+ {[%clk 0:02:50.4]}
8... Kf8 {[%clk 0:02:51.7]} 9. Bg5 {[%clk 0:02:44.9]} 9... h6 {[%clk 0:02:46.6]}
10. Bh4 {[%clk 0:02:26.1]} 10... a6 {[%clk 0:02:30.8]} 11. Be2 {[%clk
0:02:23.8]} 11... Ne5 {[%clk 0:02:29.5]} 12. f4 {[%clk 0:02:20.3]} 12... Nec6
{[%clk 0:02:28.5]} 13. Bf2 {[%clk 0:02:18.8]} 13... Nxd4 {[%clk 0:02:25]} 14.
Bxd4 {[%clk 0:02:19.7]} 14... Nc6 {[%clk 0:02:25.1]} 15. Bxg7+ {[%clk
0:02:18.7]} 15... Kxg7 {[%clk 0:02:26]} 16. Bf3 {[%clk 0:02:18.5]} 16... Be6
{[%clk 0:02:24]} 17. Qd2 {[%clk 0:02:16.7]} 17... Rc8 {[%clk 0:02:21.9]} 18. O-O
{[%clk 0:02:13.7]} 18... Qb6+ {[%clk 0:02:20.3]} 19. Kh1 {[%clk 0:02:13.6]}
19... Qxb2 {[%clk 0:02:11.8]} 20. Rab1 {[%clk 0:02:13]} 20... Qa3 {[%clk
0:02:12]} 21. Rxb7 {[%clk 0:02:12.4]} 21... Na5 {[%clk 0:01:57.1]} 22. Nb1
{[%clk 0:01:52.6]} 22... Qc5 {[%clk 0:01:44.9]} 23. Rxe7 {[%clk 0:01:49]} 23...
Bxa2 {[%clk 0:01:30.9]} 24. e5 {[%clk 0:01:37]} 24... Qxc2 {[%clk 0:00:54.8]}
25. Qxa5 {[%clk 0:01:29.2]} 25... Bxb1 {[%clk 0:00:49.5]} 26. Qd5 {[%clk
0:01:19.6]} 26... Rhf8 {[%clk 0:00:40.3]} 27. exd6 {[%clk 0:01:16.7]} 27... Qf5
{[%clk 0:00:34.5]} 28. Re5 {[%clk 0:01:03.2]} 28... Qd3 {[%clk 0:00:34.6]} 29.
Qxd3 {[%clk 0:01:00.1]} 29... Bxd3 {[%clk 0:00:35.5]} 30. Rd1 {[%clk 0:01:00.3]}
30... Bb5 {[%clk 0:00:33.2]} 31. h3 {[%clk 0:00:58]} 31... Rfd8 {[%clk
0:00:29.5]} 32. Re7 {[%clk 0:00:56.7]} 32... Bc4 {[%clk 0:00:25.5]} 33. Bg4
{[%clk 0:00:53.6]} 33... Rb8 {[%clk 0:00:20.6]} 34. d7 {[%clk 0:00:51.7]} 34...
Kf6 {[%clk 0:00:17.2]} 35. Rde1 {[%clk 0:00:51.2]} 35... Be6 {[%clk 0:00:15]}
36. Re8 {[%clk 0:00:36.9]} 36... Rxe8 {[%clk 0:00:13.7]} 37. dxe8=Q {[%clk
0:00:36.8]} 37... Rxe8 {[%clk 0:00:14.2]} 38. Bxe6 {[%clk 0:00:35.9]} 38... Rxe6
{[%clk 0:00:14.3]} 39. Ra1 {[%clk 0:00:35.6]} 39... Ke7 {[%clk 0:00:11.5]} 40.
Kg1 {[%clk 0:00:34.8]} 40... Kd7 {[%clk 0:00:12]} 41. Kf2 {[%clk 0:00:34.9]}
41... Kc7 {[%clk 0:00:12.5]} 42. Kf3 {[%clk 0:00:35.1]} 42... Kb6 {[%clk
0:00:13.1]} 43. g4 {[%clk 0:00:35]} 43... a5 {[%clk 0:00:12.6]} 44. f5 {[%clk
0:00:33.5]} 44... gxf5 {[%clk 0:00:10.9]} 45. gxf5 {[%clk 0:00:34.4]} 45... Rc6
{[%clk 0:00:10.1]} 46. Kg4 {[%clk 0:00:34.2]} 46... Rc3 {[%clk 0:00:08]} 47. h4
{[%clk 0:00:33.9]} 47... Kb5 {[%clk 0:00:06.2]} 48. Kh5 {[%clk 0:00:33.1]} 48...
Rc4 {[%clk 0:00:05.6]} 49. Kxh6 {[%clk 0:00:31.7]} 49... Rxh4+ {[%clk
0:00:04.6]} 50. Kg5 {[%clk 0:00:32.3]} 1-0

[Event "*** Titled Tuesday Blitz"]
[Site "Chess.com"]
[Date "2020.04.07"]
[Round "2"]
[White "orrbaverlekszarnyon"]
[Black "Andro2"]
[Result "1/2-1/2"]
[WhiteElo "2154"]
[BlackElo "2418"]
[TimeControl "180+1"]
[EndTime "13:19:21 PDT"]
[Termination "Game drawn by repetition"]

1. e4 {[%clk 0:03:00.9]} 1... c5 {[%clk 0:02:58.1]} 2. Nf3 {[%clk 0:03:00]} 2...
d6 {[%clk 0:02:58.5]} 3. d4 {[%clk 0:02:56.3]} 3... cxd4 {[%clk 0:02:58.1]} 4.
Nxd4 {[%clk 0:02:57.2]} 4... Nf6 {[%clk 0:02:57.5]} 5. Nc3 {[%clk 0:02:57.8]}
5... a6 {[%clk 0:02:57.7]} 6. Rg1 {[%clk 0:02:58.1]} 6... e6 {[%clk 0:02:52.2]}
7. g4 {[%clk 0:02:56.9]} 7... Nfd7 {[%clk 0:02:51.2]} 8. Be3 {[%clk 0:02:54.5]}
8... Qc7 {[%clk 0:02:48.2]} 9. Qd2 {[%clk 0:02:52.8]} 9... Nc6 {[%clk
0:02:46.7]} 10. O-O-O {[%clk 0:02:50.5]} 10... Nce5 {[%clk 0:02:34.9]} 11. f4
{[%clk 0:02:41.9]} 11... Nc4 {[%clk 0:02:34.4]} 12. Bxc4 {[%clk 0:02:41.2]}
12... Qxc4 {[%clk 0:02:34.8]} 13. f5 {[%clk 0:02:39.8]} 13... Ne5 {[%clk
0:02:29.6]} 14. fxe6 {[%clk 0:02:36.7]} 14... fxe6 {[%clk 0:02:28.3]} 15. Bf4
{[%clk 0:02:28]} 15... Ng6 {[%clk 0:02:19]} 16. Nb3 {[%clk 0:02:22.9]} 16...
Nxf4 {[%clk 0:02:07.8]} 17. Qxf4 {[%clk 0:02:23.8]} 17... Be7 {[%clk 0:02:06.8]}
18. Rd4 {[%clk 0:02:03.9]} 18... Qc7 {[%clk 0:02:02.4]} 19. Qf1 {[%clk
0:01:45.5]} 19... Bf6 {[%clk 0:01:58.9]} 20. Rd3 {[%clk 0:01:42.2]} 20... O-O
{[%clk 0:01:58]} 21. Rf3 {[%clk 0:01:40]} 21... Bd7 {[%clk 0:01:52.8]} 22. g5
{[%clk 0:01:39.3]} 22... Bxc3 {[%clk 0:01:48.6]} 23. bxc3 {[%clk 0:01:37.9]}
23... Qb6 {[%clk 0:01:23.4]} 24. Rgg3 {[%clk 0:01:30.7]} 24... Bb5 {[%clk
0:01:09.7]} 25. c4 {[%clk 0:01:24.4]} 25... Bc6 {[%clk 0:01:09.4]} 26. Rxf8+
{[%clk 0:01:19.9]} 26... Rxf8 {[%clk 0:01:07.7]} 27. Rf3 {[%clk 0:01:20.6]}
27... Rxf3 {[%clk 0:00:58.8]} 28. Qxf3 {[%clk 0:01:21.5]} 28... Qg1+ {[%clk
0:00:58.5]} 29. Kb2 {[%clk 0:01:16.1]} 29... Qxg5 {[%clk 0:00:58.8]} 30. Nd4
{[%clk 0:01:13]} 30... Qe5 {[%clk 0:00:58.6]} 31. c3 {[%clk 0:01:10.4]} 31...
Bxe4 {[%clk 0:00:53.7]} 32. Qg4 {[%clk 0:01:02]} 32... Bf5 {[%clk 0:00:42.1]}
33. Qg5 {[%clk 0:01:01.7]} 33... h6 {[%clk 0:00:33.2]} 34. Qd8+ {[%clk
0:01:01.2]} 34... Kh7 {[%clk 0:00:33.3]} 35. h4 {[%clk 0:00:58.9]} 35... Qh2+
{[%clk 0:00:21.3]} 36. Kb3 {[%clk 0:00:58.1]} 36... Bg4 {[%clk 0:00:19.7]} 37.
Qc7 {[%clk 0:00:42.8]} 37... Bd1+ {[%clk 0:00:19]} 38. Ka3 {[%clk 0:00:43]}
38... Qe5 {[%clk 0:00:17]} 39. Qxb7 {[%clk 0:00:36]} 39... a5 {[%clk 0:00:14.3]}
40. Qh1 {[%clk 0:00:27.7]} 40... Qc5+ {[%clk 0:00:09.4]} 41. Kb2 {[%clk
0:00:27.5]} 41... Bg4 {[%clk 0:00:09.8]} 42. Qe4+ {[%clk 0:00:25.5]} 42... Bf5
{[%clk 0:00:09.4]} 43. Qe2 {[%clk 0:00:23.6]} 43... Qb6+ {[%clk 0:00:08.1]} 44.
Ka3 {[%clk 0:00:21.6]} 44... Qc5+ {[%clk 0:00:08.1]} 45. Kb2 {[%clk 0:00:21.6]}
45... Qb6+ {[%clk 0:00:07.6]} 46. Ka3 {[%clk 0:00:21.9]} 46... Qc5+ {[%clk
0:00:07.1]} 47. Kb2 {[%clk 0:00:22.1]} 1/2-1/2

[Event "*** Titled Tuesday Blitz"]
[Site "Chess.com"]
[Date "2020.04.07"]
[Round "2"]
[White "Girkassa"]
[Black "MisiekZielony"]
[Result "1-0"]
[WhiteElo "2482"]
[BlackElo "2127"]
[TimeControl "180+1"]
[EndTime "13:19:21 PDT"]
[Termination "Girkassa won on time"]

1. d4 {[%clk 0:03:00.9]} 1... d5 {[%clk 0:02:59.7]} 2. c4 {[%clk 0:03:00.8]}
2... c6 {[%clk 0:02:59.9]} 3. Nf3 {[%clk 0:03:00.1]} 3... Nf6 {[%clk 0:02:59.9]}
4. e3 {[%clk 0:03:00.4]} 4... g6 {[%clk 0:02:58.6]} 5. Bd3 {[%clk 0:02:58]} 5...
Bg7 {[%clk 0:02:58.5]} 6. O-O {[%clk 0:02:58.5]} 6... Bg4 {[%clk 0:02:46.3]} 7.
Nbd2 {[%clk 0:02:57.7]} 7... O-O {[%clk 0:02:46]} 8. h3 {[%clk 0:02:57.4]} 8...
Bxf3 {[%clk 0:02:45.3]} 9. Nxf3 {[%clk 0:02:56.7]} 9... e6 {[%clk 0:02:44.7]}
10. Ne5 {[%clk 0:02:55.2]} 10... Nfd7 {[%clk 0:02:43.7]} 11. f4 {[%clk
0:02:54.9]} 11... Nxe5 {[%clk 0:02:43.2]} 12. fxe5 {[%clk 0:02:54.9]} 12... Nd7
{[%clk 0:02:42.3]} 13. Bd2 {[%clk 0:02:54]} 13... f6 {[%clk 0:02:36.3]} 14. Bb4
{[%clk 0:02:48.9]} 14... Rf7 {[%clk 0:02:30.6]} 15. exf6 {[%clk 0:02:46]} 15...
Bxf6 {[%clk 0:02:29.4]} 16. Qg4 {[%clk 0:02:44.8]} 16... e5 {[%clk 0:01:46.7]}
17. cxd5 {[%clk 0:02:17.4]} 17... cxd5 {[%clk 0:01:42]} 18. Bf5 {[%clk
0:02:07.3]} 18... Nf8 {[%clk 0:01:20.2]} 19. Bxf8 {[%clk 0:01:24]} 19... Kxf8
{[%clk 0:01:15.7]} 20. Be6 {[%clk 0:01:20.4]} 20... exd4 {[%clk 0:00:50.6]} 21.
Bxf7 {[%clk 0:01:16.9]} 21... Kxf7 {[%clk 0:00:50.1]} 22. exd4 {[%clk
0:01:14.1]} 22... Kg7 {[%clk 0:00:48.8]} 23. Rae1 {[%clk 0:01:10.9]} 23... Qb6
{[%clk 0:00:47.8]} 24. Qd7+ {[%clk 0:01:06.7]} 24... Kh6 {[%clk 0:00:46.4]} 25.
Rf4 {[%clk 0:00:48.6]} 25... Bxd4+ {[%clk 0:00:34.1]} 26. Kh1 {[%clk 0:00:48.6]}
26... Bf2 {[%clk 0:00:29.9]} 27. Re7 {[%clk 0:00:40.5]} 27... Rh8 {[%clk
0:00:26.1]} 28. Qxd5 {[%clk 0:00:31.2]} 28... Qxb2 {[%clk 0:00:21.5]} 29. Qd1
{[%clk 0:00:23.9]} 29... Rd8 {[%clk 0:00:11.1]} 30. Qf1 {[%clk 0:00:19.7]} 30...
Bg3 {[%clk 0:00:10.7]} 31. Rf3 {[%clk 0:00:18.8]} 31... Qc2 {[%clk 0:00:10.4]}
32. Rxg3 {[%clk 0:00:17.8]} 32... Rd1 {[%clk 0:00:07.4]} 33. Re1 {[%clk
0:00:18.3]} 1-0

[Event "*** Titled Tuesday Blitz"]
[Site "Chess.com"]
[Date "2020.04.07"]
[Round "2"]
[White "AleksanderHnydiuk"]
[Black "jk13"]
[Result "1/2-1/2"]
[WhiteElo "2554"]
[BlackElo "2820"]
[TimeControl "180+1"]
[EndTime "13:19:22 PDT"]
[Termination "Game drawn by repetition"]

1. Nf3 {[%clk 0:03:00.9]} 1... e6 {[%clk 0:03:00.2]} 2. c4 {[%clk 0:02:58.7]}
2... Nf6 {[%clk 0:03:00.7]} 3. g3 {[%clk 0:02:58.3]} 3... d5 {[%clk 0:03:00.8]}
4. d4 {[%clk 0:02:58.1]} 4... Bb4+ {[%clk 0:02:59.3]} 5. Bd2 {[%clk 0:02:58]}
5... c5 {[%clk 0:02:59.2]} 6. cxd5 {[%clk 0:02:51.9]} 6... exd5 {[%clk
0:02:58.4]} 7. Bg2 {[%clk 0:02:47.5]} 7... O-O {[%clk 0:02:58]} 8. O-O {[%clk
0:02:46.5]} 8... Nc6 {[%clk 0:02:58.4]} 9. dxc5 {[%clk 0:02:44.5]} 9... Bxc5
{[%clk 0:02:59.2]} 10. Nc3 {[%clk 0:02:42.6]} 10... h6 {[%clk 0:02:57.5]} 11.
Na4 {[%clk 0:02:40.2]} 11... Be7 {[%clk 0:02:56.3]} 12. Rc1 {[%clk 0:02:36.5]}
12... Ne4 {[%clk 0:02:53.8]} 13. Be3 {[%clk 0:02:35.7]} 13... Bg4 {[%clk
0:02:52]} 14. Nc5 {[%clk 0:02:14.4]} 14... Nxc5 {[%clk 0:02:45]} 15. Bxc5 {[%clk
0:02:15.3]} 15... Re8 {[%clk 0:02:45.4]} 16. Bxe7 {[%clk 0:02:07.4]} 16... Qxe7
{[%clk 0:02:45.6]} 17. Re1 {[%clk 0:01:55.9]} 17... Rad8 {[%clk 0:02:44.2]} 18.
Nd4 {[%clk 0:01:52.1]} 18... Ne5 {[%clk 0:02:42.9]} 19. Qb3 {[%clk 0:01:43.4]}
19... Qd7 {[%clk 0:02:22.9]} 20. Qb5 {[%clk 0:01:40.6]} 20... Qe7 {[%clk
0:02:02.2]} 21. Bxd5 {[%clk 0:01:24.1]} 21... Qd6 {[%clk 0:01:55]} 22. e4 {[%clk
0:01:16.6]} 22... Qf6 {[%clk 0:01:30.2]} 23. f4 {[%clk 0:01:08.1]} 23... Nc6
{[%clk 0:01:10.4]} 24. Nb3 {[%clk 0:00:37.2]} 24... Qxb2 {[%clk 0:01:04.5]} 25.
Qxb7 {[%clk 0:00:32.3]} 25... Ne7 {[%clk 0:00:58.4]} 26. Qxa7 {[%clk 0:00:21.5]}
26... Nxd5 {[%clk 0:00:51.6]} 27. exd5 {[%clk 0:00:22.4]} 27... Rxe1+ {[%clk
0:00:51]} 28. Rxe1 {[%clk 0:00:21.9]} 28... Kh7 {[%clk 0:00:42.4]} 29. Qf2
{[%clk 0:00:20.9]} 29... Qc3 {[%clk 0:00:35.7]} 30. Qd2 {[%clk 0:00:17.2]} 30...
Qc4 {[%clk 0:00:31.7]} 31. Rc1 {[%clk 0:00:15]} 31... Qa4 {[%clk 0:00:27.3]} 32.
Qd3+ {[%clk 0:00:13.9]} 32... Kg8 {[%clk 0:00:26.1]} 33. Rc2 {[%clk 0:00:11.4]}
33... g6 {[%clk 0:00:24.4]} 34. Rd2 {[%clk 0:00:11.4]} 34... h5 {[%clk
0:00:22.4]} 35. d6 {[%clk 0:00:11.1]} 35... h4 {[%clk 0:00:21.2]} 36. Qd4 {[%clk
0:00:11.2]} 36... Qc6 {[%clk 0:00:20.4]} 37. Nc5 {[%clk 0:00:09.2]} 37... h3
{[%clk 0:00:18.2]} 38. Ne4 {[%clk 0:00:08.7]} 38... Bf5 {[%clk 0:00:15.5]} 39.
Nf6+ {[%clk 0:00:08.6]} 39... Kf8 {[%clk 0:00:15.9]} 40. Nd7+ {[%clk 0:00:07.6]}
40... Kg8 {[%clk 0:00:15.2]} 41. Nf6+ {[%clk 0:00:07.8]} 41... Kf8 {[%clk
0:00:15.1]} 42. Nd7+ {[%clk 0:00:08.1]} 42... Kg8 {[%clk 0:00:15.4]} 43. Nf6+
{[%clk 0:00:08.4]} 1/2-1/2

[Event "*** Titled Tuesday Blitz"]
[Site "Chess.com"]
[Date "2020.04.07"]
[Round "2"]
[White "GodDMuhammad"]
[Black "Kiborg95"]
[Result "0-1"]
[WhiteElo "2323"]
[BlackElo "2677"]
[TimeControl "180+1"]
[EndTime "13:19:23 PDT"]
[Termination "Kiborg95 won by resignation"]

1. f4 {[%clk 0:03:00.9]} 1... d6 {[%clk 0:02:57.3]} 2. Nf3 {[%clk 0:02:59.6]}
2... Nd7 {[%clk 0:02:57.6]} 3. g3 {[%clk 0:02:56.8]} 3... g6 {[%clk 0:02:57.5]}
4. Bg2 {[%clk 0:02:56.9]} 4... Bg7 {[%clk 0:02:58.4]} 5. d3 {[%clk 0:02:56.6]}
5... Nh6 {[%clk 0:02:59.1]} 6. c3 {[%clk 0:02:55.4]} 6... e5 {[%clk 0:02:59]} 7.
e4 {[%clk 0:02:53.1]} 7... f5 {[%clk 0:02:55.5]} 8. O-O {[%clk 0:02:24.7]} 8...
fxe4 {[%clk 0:02:54.9]} 9. dxe4 {[%clk 0:02:24.7]} 9... O-O {[%clk 0:02:50.2]}
10. Ng5 {[%clk 0:02:16.7]} 10... Qe7 {[%clk 0:02:44.4]} 11. Be3 {[%clk
0:02:08.1]} 11... Kh8 {[%clk 0:02:24.9]} 12. Nd2 {[%clk 0:02:02.5]} 12... Nf6
{[%clk 0:02:25.3]} 13. h3 {[%clk 0:01:48.9]} 13... Nh5 {[%clk 0:02:25.6]} 14.
Kh2 {[%clk 0:01:47.2]} 14... exf4 {[%clk 0:02:22.6]} 15. gxf4 {[%clk 0:01:46.2]}
15... Nxf4 {[%clk 0:02:16.4]} 16. Rxf4 {[%clk 0:01:44]} 16... Be5 {[%clk
0:02:13.6]} 17. Ndf3 {[%clk 0:01:12.4]} 17... Rxf4 {[%clk 0:01:56.1]} 18. Nxe5
{[%clk 0:00:52.6]} 18... dxe5 {[%clk 0:01:36]} 19. Bxf4 {[%clk 0:00:49.7]} 19...
exf4 {[%clk 0:01:36.9]} 20. Qd4+ {[%clk 0:00:47.8]} 20... Kg8 {[%clk 0:01:36.8]}
21. Nf3 {[%clk 0:00:43.6]} 21... Nf7 {[%clk 0:01:33.4]} 22. e5 {[%clk
0:00:40.2]} 22... g5 {[%clk 0:01:33.4]} 23. Re1 {[%clk 0:00:35.4]} 23... Be6
{[%clk 0:01:32.8]} 24. b3 {[%clk 0:00:29.4]} 24... h5 {[%clk 0:01:23.5]} 25. Qe4
{[%clk 0:00:26.1]} 25... Kg7 {[%clk 0:01:11.1]} 26. Nd4 {[%clk 0:00:24.6]} 26...
Re8 {[%clk 0:01:01]} 27. Qxb7 {[%clk 0:00:19.8]} 27... c5 {[%clk 0:01:01.4]} 28.
Nxe6+ {[%clk 0:00:19]} 28... Qxe6 {[%clk 0:01:01.2]} 29. Bd5 {[%clk 0:00:17.3]}
29... Qe7 {[%clk 0:01:01.7]} 30. Qxe7 {[%clk 0:00:16.9]} 30... Rxe7 {[%clk
0:01:02.6]} 31. e6 {[%clk 0:00:17.7]} 31... Nd6 {[%clk 0:01:00.6]} 32. c4 {[%clk
0:00:17.8]} 32... Kf6 {[%clk 0:01:00.5]} 33. Kg2 {[%clk 0:00:16.3]} 33... g4
{[%clk 0:00:59.9]} 34. hxg4 {[%clk 0:00:16.4]} 34... hxg4 {[%clk 0:01:00.8]} 35.
Rh1 {[%clk 0:00:16.8]} 35... Nf5 {[%clk 0:00:57.7]} 36. Rh8 {[%clk 0:00:16.2]}
36... Ke5 {[%clk 0:00:55.7]} 37. Rh5 {[%clk 0:00:15.1]} 37... f3+ {[%clk
0:00:55.4]} 38. Kf2 {[%clk 0:00:15]} 38... Kf4 {[%clk 0:00:56]} 39. Rh8 {[%clk
0:00:12.8]} 39... g3+ {[%clk 0:00:56.4]} 40. Kf1 {[%clk 0:00:13.3]} 40... Ne3+
{[%clk 0:00:56.3]} 41. Ke1 {[%clk 0:00:12.7]} 41... f2+ {[%clk 0:00:57.2]} 42.
Kd2 {[%clk 0:00:12.9]} 42... f1=Q {[%clk 0:00:43.4]} 43. Rf8+ {[%clk 0:00:13.3]}
43... Nf5 {[%clk 0:00:42.9]} 44. Rf7 {[%clk 0:00:11.2]} 44... Qf2+ {[%clk
0:00:40.9]} 45. Kd3 {[%clk 0:00:10.7]} 45... Qd4+ {[%clk 0:00:40.1]} 46. Ke2
{[%clk 0:00:11.4]} 46... Rxf7 {[%clk 0:00:40.2]} 47. exf7 {[%clk 0:00:11.1]}
47... Qg7 {[%clk 0:00:40.5]} 48. a3 {[%clk 0:00:09.6]} 48... Nd6 {[%clk
0:00:40.7]} 49. b4 {[%clk 0:00:09.6]} 49... Nxf7 {[%clk 0:00:41.1]} 50. bxc5
{[%clk 0:00:09.2]} 50... Ne5 {[%clk 0:00:41.5]} 51. c6 {[%clk 0:00:10.1]} 51...
g2 {[%clk 0:00:41.9]} 0-1

[Event "*** Titled Tuesday Blitz"]
[Site "Chess.com"]
[Date "2020.04.07"]
[Round "2"]
[White "Vamostodorecto"]
[Black "aloe_normansen"]
[Result "0-1"]
[WhiteElo "2413"]
[BlackElo "2172"]
[TimeControl "180+1"]
[EndTime "13:19:23 PDT"]
[Termination "aloe_normansen won by checkmate"]

1. d4 {[%clk 0:03:00.9]} 1... Nf6 {[%clk 0:02:59.4]} 2. c4 {[%clk 0:03:00.9]}
2... g6 {[%clk 0:02:59.2]} 3. Nc3 {[%clk 0:03:00.7]} 3... Bg7 {[%clk 0:02:59.7]}
4. e4 {[%clk 0:02:59.5]} 4... O-O {[%clk 0:02:59.8]} 5. Be2 {[%clk 0:03:00]}
5... d6 {[%clk 0:02:59.1]} 6. Nf3 {[%clk 0:03:00.6]} 6... e5 {[%clk 0:02:59.1]}
7. O-O {[%clk 0:03:01.2]} 7... Nc6 {[%clk 0:02:59.4]} 8. d5 {[%clk 0:03:01.8]}
8... Ne7 {[%clk 0:02:58.9]} 9. Be3 {[%clk 0:03:02.3]} 9... Ng4 {[%clk
0:02:54.8]} 10. Bg5 {[%clk 0:02:55]} 10... h6 {[%clk 0:02:48.3]} 11. Bd2 {[%clk
0:02:54.2]} 11... f5 {[%clk 0:02:45.3]} 12. h3 {[%clk 0:02:49.3]} 12... Nf6
{[%clk 0:02:44.2]} 13. Bd3 {[%clk 0:02:39.9]} 13... f4 {[%clk 0:02:40.1]} 14. b4
{[%clk 0:02:36.1]} 14... g5 {[%clk 0:02:36.6]} 15. Nh2 {[%clk 0:02:35.1]} 15...
h5 {[%clk 0:02:18]} 16. f3 {[%clk 0:02:33.2]} 16... Ng6 {[%clk 0:02:14]} 17. c5
{[%clk 0:02:30.3]} 17... Bh6 {[%clk 0:02:03.6]} 18. cxd6 {[%clk 0:02:28.7]}
18... cxd6 {[%clk 0:02:02.9]} 19. Rc1 {[%clk 0:02:29.3]} 19... Rf7 {[%clk
0:02:00.2]} 20. Be2 {[%clk 0:02:16]} 20... Rg7 {[%clk 0:01:54.1]} 21. Be1 {[%clk
0:02:12.9]} 21... g4 {[%clk 0:01:34.4]} 22. fxg4 {[%clk 0:02:06.4]} 22... f3
{[%clk 0:01:21.1]} 23. Bxf3 {[%clk 0:02:04.8]} 23... Bxc1 {[%clk 0:01:21]} 24.
Qxc1 {[%clk 0:02:02.8]} 24... hxg4 {[%clk 0:01:20.6]} 25. hxg4 {[%clk
0:01:57.2]} 25... Nf4 {[%clk 0:01:14.5]} 26. Bh4 {[%clk 0:01:51.6]} 26... Qb6+
{[%clk 0:00:57.7]} 27. Kh1 {[%clk 0:01:49.4]} 27... Nxg4 {[%clk 0:00:50.7]} 28.
Bxg4 {[%clk 0:01:30]} 28... Bxg4 {[%clk 0:00:50.1]} 29. Qe1 {[%clk 0:00:43.6]}
29... Nxg2 {[%clk 0:00:33.1]} 30. Kxg2 {[%clk 0:00:30.8]} 30... Be2+ {[%clk
0:00:32.1]} 31. Kh1 {[%clk 0:00:17.7]} 31... Bxf1 {[%clk 0:00:31.6]} 32. Qxf1
{[%clk 0:00:17.1]} 32... Rf8 {[%clk 0:00:31.2]} 33. Qb1 {[%clk 0:00:14.3]} 33...
Qe3 {[%clk 0:00:28.6]} 34. Qe1 {[%clk 0:00:05.7]} 34... Qh3 {[%clk 0:00:25.6]}
35. Ne2 {[%clk 0:00:02.7]} 35... Qg2# {[%clk 0:00:24.9]} 0-1

[Event "*** Titled Tuesday Blitz"]
[Site "Chess.com"]
[Date "2020.04.07"]
[Round "2"]
[White "Rish_97"]
[Black "dretch"]
[Result "1-0"]
[WhiteElo "2566"]
[BlackElo "2786"]
[TimeControl "180+1"]
[EndTime "13:19:24 PDT"]
[Termination "Rish_97 won by checkmate"]

1. e4 {[%clk 0:02:59.5]} 1... e6 {[%clk 0:02:58.2]} 2. d4 {[%clk 0:02:59]} 2...
d5 {[%clk 0:02:58.9]} 3. Nc3 {[%clk 0:02:58.7]} 3... Nf6 {[%clk 0:02:59.5]} 4.
e5 {[%clk 0:02:58.7]} 4... Nfd7 {[%clk 0:03:00.2]} 5. Nce2 {[%clk 0:02:59]} 5...
c5 {[%clk 0:02:59.3]} 6. c3 {[%clk 0:02:59.6]} 6... Nc6 {[%clk 0:02:59.9]} 7.
Nf3 {[%clk 0:03:00]} 7... Be7 {[%clk 0:02:51.6]} 8. a3 {[%clk 0:02:40.4]} 8...
b5 {[%clk 0:02:33.6]} 9. Nf4 {[%clk 0:02:31.1]} 9... c4 {[%clk 0:02:25.3]} 10.
h4 {[%clk 0:02:28]} 10... h6 {[%clk 0:02:10.6]} 11. Be3 {[%clk 0:02:23.7]} 11...
Nb6 {[%clk 0:02:07.3]} 12. Rh3 {[%clk 0:02:18.4]} 12... a5 {[%clk 0:02:04.1]}
13. Qc2 {[%clk 0:02:09.8]} 13... b4 {[%clk 0:01:59.8]} 14. axb4 {[%clk
0:02:09.8]} 14... axb4 {[%clk 0:01:59.8]} 15. Rxa8 {[%clk 0:02:10.4]} 15... Nxa8
{[%clk 0:02:00.7]} 16. Rg3 {[%clk 0:02:10.2]} 16... g6 {[%clk 0:01:50.5]} 17.
Rxg6 {[%clk 0:01:15.7]} 17... b3 {[%clk 0:01:16.8]} 18. Qb1 {[%clk 0:01:11.4]}
18... Qa5 {[%clk 0:01:15.9]} 19. Rg7 {[%clk 0:00:56.2]} 19... Qa2 {[%clk
0:01:15.4]} 20. Nd2 {[%clk 0:00:54.6]} 20... Nb6 {[%clk 0:01:12.3]} 21. Be2
{[%clk 0:00:49.2]} 21... Na4 {[%clk 0:01:09.8]} 22. Bh5 {[%clk 0:00:44.8]} 22...
Nd8 {[%clk 0:00:57.8]} 23. Bxf7+ {[%clk 0:00:29.1]} 23... Nxf7 {[%clk
0:00:57.3]} 24. Qg6 {[%clk 0:00:29.4]} 24... Rf8 {[%clk 0:00:51.1]} 25. Nxe6
{[%clk 0:00:29.2]} 25... Qa1+ {[%clk 0:00:26.9]} 26. Ke2 {[%clk 0:00:29.4]}
26... Nxb2 {[%clk 0:00:27]} 27. Kf3 {[%clk 0:00:17.3]} 27... Bxe6 {[%clk
0:00:23.2]} 28. Kg3 {[%clk 0:00:10.2]} 28... Qa6 {[%clk 0:00:20.1]} 29. Nf3
{[%clk 0:00:07.8]} 29... Nd3 {[%clk 0:00:19]} 30. Bxh6 {[%clk 0:00:07.3]} 30...
b2 {[%clk 0:00:16.8]} 31. Ng5 {[%clk 0:00:05.6]} 31... Bxg5 {[%clk 0:00:08.1]}
32. Bxg5 {[%clk 0:00:06.5]} 32... b1=Q {[%clk 0:00:07.4]} 33. Qf6 {[%clk
0:00:06.7]} 33... Qbb7 {[%clk 0:00:06.6]} 34. Rxf7 {[%clk 0:00:05.9]} 34... Qd7
{[%clk 0:00:01.7]} 35. Rxf8# {[%clk 0:00:04.7]} 1-0